fUST/lending_fUST_20250212
["ID","MTS","AMOUNT","RATE_DAILY","PERIOD"]
[352785030,1739311832831,-500.0,0.00013549,2]
[352785032,1739311832840,-500.0,0.0001355,2]
[352785034,1739311832849,-500.0,0.0001355,2]
[352785036,1739311832859,-500.0,0.0001355,2]
[352785038,1739311832868,-500.0,0.0001355,2]
[352785040,1739311832878,-500.0,0.0001355,2]
[352785042,1739311832888,-500.0,0.0001355,2]
[352785044,1739311832898,-9191.81,0.0001355,2]
[352785046,1739311832907,-500.0,0.0001355,2]
[352785048,1739311832917,-500.0,0.0001355,2]
[352785050,1739311832926,-500.0,0.0001355,2]
[352785053,1739311832936,-536.9,0.0001355,2]
[352785055,1739311832946,-500.0,0.0001355,2]
[352785057,1739311832955,-500.0,0.0001355,2]
[352785059,1739311832964,-699.17,0.0001355,2]
[352785061,1739311832974,-500.0,0.0001355,2]
[352785063,1739311832983,-799.3,0.0001355,2]
[352785065,1739311832992,-81.33860545,0.0001355,2]
[352785067,1739311833010,-3378.95139455,0.0001355,2]
[352785069,1739311833020,-500.0,0.0001355,2]
[352785071,1739311833029,-365.54549456,0.0001355,2]
[352785073,1739311833039,-500.0,0.0001355,2]
[352785076,1739311833050,-500.0,0.0001355,2]
[352785078,1739311833059,-500.0,0.0001355,2]
[352785080,1739311833069,-846.55,0.0001355,2]
[352785081,1739311833078,-500.0,0.0001355,2]
[352785083,1739311833087,-500.0,0.0001355,2]
[352785085,1739311833097,-500.0,0.0001355,2]
[352785087,1739311833106,-500.0,0.0001355,2]
[352785089,1739311833116,-476.6664275,0.0001355,2]
[352785091,1739311833124,-500.0,0.0001355,2]
[352785093,1739311833134,-500.0,0.0001355,2]
[352785095,1739311833143,-825.41,0.00013686,2]
[352785097,1739311833153,-500.0,0.00013686,2]
[352785099,1739311833162,-500.0,0.00013686,2]
[352785101,1739311833174,-500.0,0.00013686,2]
[352785103,1739311833184,-500.0,0.00013686,2]
[352785106,1739311833194,-563.0,0.00013686,2]
[352785108,1739311833203,-500.0,0.00013686,2]
[352785110,1739311833214,-500.0,0.00013687,2]
[352785112,1739311833225,-420.6,0.00013687,2]
[352785114,1739311833234,-500.0,0.00013687,2]
[352785116,1739311833243,-500.0,0.00013687,2]
[352785118,1739311833254,-9191.81,0.00013687,2]
[352785120,1739311833263,-536.9,0.00013687,2]
[352785122,1739311833272,-500.0,0.00013687,2]
[352785123,1739311833281,-500.0,0.00013687,2]
[352785126,1739311833291,-699.17,0.00013687,2]
[352785128,1739311833300,-3460.29,0.00013687,2]
[352785129,1739311833309,-799.3,0.00013687,2]
[352785131,1739311833318,-500.0,0.00013687,2]
[352785133,1739311833327,-500.0,0.00013687,2]
[352785136,1739311833337,-846.55,0.00013687,2]
[352785137,1739311833347,-500.0,0.00013687,2]
[352785139,1739311833356,-500.0,0.00013687,2]
[352785141,1739311833366,-217.28918862,0.00013687,2]
[352785143,1739311833375,-187.307507,0.00013699,2]
[352785146,1739311833384,-825.41,0.00013823,2]
[352785148,1739311833394,-500.0,0.00013823,2]
[352785150,1739311833403,-500.0,0.00013823,2]
[352785152,1739311833412,-500.0,0.00013823,2]
[352785154,1739311833421,-500.0,0.00013824,2]
[352785156,1739311833431,-500.0,0.00013824,2]
[352785158,1739311833440,-244.68175382,0.00013824,2]
[352785611,1739311838305,-500.0,0.00013549,2]
[352785613,1739311838315,-42.97786932,0.00013824,2]
[352785900,1739311841109,-8904.15037686,0.00013824,2]
[352785902,1739311841118,-536.9,0.00013824,2]
[352785904,1739311841127,-500.0,0.00013824,2]
[352785906,1739311841137,-500.0,0.00013824,2]
[352785908,1739311841146,-699.17,0.00013824,2]
[352785910,1739311841155,-3460.29,0.00013824,2]
[352785912,1739311841165,-799.3,0.00013824,2]
[352785914,1739311841177,-500.0,0.00013824,2]
[352785916,1739311841189,-500.0,0.00013824,2]
[352785918,1739311841198,-846.55,0.00013824,2]
[352785920,1739311841208,-500.0,0.00013824,2]
[352785923,1739311841227,-500.0,0.00013824,2]
[352785926,1739311841239,-825.41,0.0001396,2]
[352785928,1739311841249,-500.0,0.0001396,2]
[352785930,1739311841260,-500.0,0.0001396,2]
[352785932,1739311841270,-500.0,0.0001396,2]
[352785934,1739311841279,-500.0,0.00013961,2]
[352785936,1739311841289,-500.0,0.00013961,2]
[352785938,1739311841299,-3195.3656832,0.00013961,2]
[352785940,1739311841312,-928.3289022,0.00013961,2]
[352786041,1739311842259,-1909.16989383,0.00013961,2]
[352786088,1739311842685,-3158.94552077,0.00013961,2]
[352786090,1739311842696,-536.9,0.00013961,2]
[352786092,1739311842705,-31.54077494,0.00013961,2]
[352786095,1739311842720,-456.190222,0.00013961,2]
[352786097,1739311842732,-12.26900306,0.00013961,2]
[352786099,1739311842742,-500.0,0.00013961,2]
[352786101,1739311842752,-699.17,0.00013961,2]
[352786103,1739311842761,-2541.8084917,0.00013961,2]
[352786106,1739311842777,-918.4815083,0.00013961,2]
[352786108,1739311842787,-799.3,0.00013961,2]
[352786110,1739311842796,-500.0,0.00013961,2]
[352786112,1739311842806,-500.0,0.00013961,2]
[352786114,1739311842815,-846.55,0.00013961,2]
[352786116,1739311842825,-500.0,0.00013961,2]
[352786118,1739311842834,-500.0,0.00013961,2]
[352786120,1739311842844,-825.41,0.00014097,2]
[352786122,1739311842854,-500.0,0.00014097,2]
[352786124,1739311842863,-500.0,0.00014097,2]
[352786126,1739311842872,-500.0,0.00014097,2]
[352786128,1739311842882,-414.07419063,0.00014098,2]
[352786131,1739311842891,-500.0,0.00014098,2]
[352786133,1739311842902,-500.0,0.00014098,2]
[352786135,1739311842911,-500.0,0.00014098,2]
[352786137,1739311842921,-500.0,0.00014098,2]
[352786139,1739311842931,-500.0,0.00014098,2]
[352786141,1739311842941,-500.0,0.00014098,2]
[352786143,1739311842950,-500.0,0.00014098,2]
[352786162,1739311843064,-9191.81,0.00014098,2]
[352786166,1739311843075,-536.9,0.00014098,2]
[352786169,1739311843084,-500.0,0.00014098,2]
[352786171,1739311843093,-500.0,0.00014098,2]
[352786174,1739311843103,-699.17,0.00014098,2]
[352786177,1739311843112,-3460.29,0.00014098,2]
[352786181,1739311843121,-799.3,0.00014098,2]
[352786183,1739311843131,-500.0,0.00014098,2]
[352786186,1739311843140,-500.0,0.00014098,2]
[352786189,1739311843149,-846.55,0.00014098,2]
[352786192,1739311843158,-500.0,0.00014098,2]
[352786195,1739311843167,-500.0,0.00014098,2]
[352786198,1739311843181,-500.0,0.00014099,2]
[352786201,1739311843191,-500.0,0.00014099,2]
[352786204,1739311843200,-300.0,0.000142,5]
[352786207,1739311843209,-825.41,0.00014234,2]
[352786210,1739311843220,-500.0,0.00014234,2]
[352786213,1739311843229,-500.0,0.00014234,2]
[352786216,1739311843238,-500.0,0.00014234,2]
[352786219,1739311843248,-500.0,0.00014235,2]
[352786221,1739311843260,-455.45,0.00014235,2]
[352786225,1739311843270,-500.0,0.00014235,2]
[352786227,1739311843279,-500.0,0.00014235,2]
[352786231,1739311843289,-500.0,0.00014235,2]
[352786234,1739311843298,-628.69,0.00014235,2]
[352786237,1739311843307,-500.0,0.00014235,2]
[352786240,1739311843316,-500.0,0.00014235,2]
[352786243,1739311843326,-500.0,0.00014235,2]
[352786246,1739311843336,-500.0,0.00014235,2]
[352786249,1739311843345,-9191.81,0.00014235,2]
[352786252,1739311843354,-536.9,0.00014235,2]
[352786255,1739311843363,-500.0,0.00014235,2]
[352786258,1739311843373,-500.0,0.00014235,2]
[352786261,1739311843382,-699.17,0.00014235,2]
[352786264,1739311843391,-3460.29,0.00014235,2]
[352786267,1739311843400,-799.3,0.00014235,2]
[352786270,1739311843409,-500.0,0.00014235,2]
[352786273,1739311843418,-500.0,0.00014235,2]
[352786276,1739311843427,-846.55,0.00014235,2]
[352786279,1739311843437,-500.0,0.00014235,2]
[352786281,1739311843446,-500.0,0.00014235,2]
[352786284,1739311843455,-500.0,0.00014236,2]
[352786287,1739311843464,-500.0,0.00014236,2]
[352786290,1739311843473,-825.41,0.00014371,2]
[352786293,1739311843482,-500.0,0.00014371,2]
[352786296,1739311843491,-500.0,0.00014371,2]
[352786299,1739311843501,-500.0,0.00014371,2]
[352786301,1739311843510,-500.0,0.00014372,2]
[352786304,1739311843520,-303.16,0.00014372,2]
[352786309,1739311843530,-500.0,0.00014372,2]
[352786312,1739311843540,-9191.81,0.00014372,2]
[352786315,1739311843549,-536.9,0.00014372,2]
[352786318,1739311843558,-500.0,0.00014372,2]
[352786320,1739311843567,-500.0,0.00014372,2]
[352786322,1739311843577,-699.17,0.00014372,2]
[352786324,1739311843586,-3460.29,0.00014372,2]
[352786327,1739311843595,-799.3,0.00014372,2]
[352786330,1739311843604,-500.0,0.00014372,2]
[352786332,1739311843614,-500.0,0.00014372,2]
[352786336,1739311843623,-846.55,0.00014372,2]
[352786339,1739311843632,-500.0,0.00014372,2]
[352786343,1739311843641,-409.95,0.00014372,2]
[352786347,1739311843650,-500.0,0.00014373,2]
[352786350,1739311843659,-825.41,0.00014508,2]
[352786354,1739311843668,-300.34,0.00014508,2]
[352786357,1739311843677,-500.0,0.00014508,2]
[352786359,1739311843687,-500.0,0.00014508,2]
[352786361,1739311843696,-500.0,0.00014509,2]
[352786362,1739311843706,-500.0,0.00014509,2]
[352786364,1739311843715,-9191.81,0.00014509,2]
[352786366,1739311843724,-536.9,0.00014509,2]
[352786368,1739311843734,-500.0,0.00014509,2]
[352786370,1739311843743,-500.0,0.00014509,2]
[352786372,1739311843752,-699.17,0.00014509,2]
[352786373,1739311843761,-3460.29,0.00014509,2]
[352786375,1739311843770,-799.3,0.00014509,2]
[352786377,1739311843779,-500.0,0.00014509,2]
[352786379,1739311843789,-500.0,0.00014509,2]
[352786381,1739311843798,-846.55,0.00014509,2]
[352786383,1739311843807,-500.0,0.00014509,2]
[352786386,1739311843816,-500.0,0.0001451,2]
[352786389,1739311843825,-825.41,0.00014645,2]
[352786392,1739311843834,-500.0,0.00014645,2]
[352786395,1739311843843,-500.0,0.00014645,2]
[352786397,1739311843853,-500.0,0.00014646,2]
[352786400,1739311843863,-500.0,0.00014646,2]
[352786402,1739311843872,-9191.81,0.00014646,2]
[352786404,1739311843881,-536.9,0.00014646,2]
[352786407,1739311843890,-500.0,0.00014646,2]
[352786409,1739311843899,-529.18,0.00014646,2]
[352786411,1739311843909,-699.17,0.00014646,2]
[352786414,1739311843918,-3460.29,0.00014646,2]
[352786417,1739311843927,-799.3,0.00014646,2]
[352786420,1739311843936,-500.0,0.00014646,2]
[352786421,1739311843946,-500.0,0.00014646,2]
[352786423,1739311843955,-846.55,0.00014646,2]
[352786425,1739311843964,-500.0,0.00014646,2]
[352786427,1739311843974,-500.0,0.00014647,2]
[352786429,1739311843983,-700.0,0.0001476,2]
[352786431,1739311843992,-825.41,0.00014782,2]
[352786433,1739311844002,-500.0,0.00014782,2]
[352786435,1739311844012,-500.0,0.00014782,2]
[352786437,1739311844021,-500.0,0.00014783,2]
[352786439,1739311844031,-500.0,0.00014783,2]
[352786441,1739311844040,-9191.81,0.00014783,2]
[352786443,1739311844050,-536.9,0.00014783,2]
[352786445,1739311844059,-500.0,0.00014783,2]
[352786447,1739311844068,-699.17,0.00014783,2]
[352786449,1739311844078,-3460.29,0.00014783,2]
[352786451,1739311844087,-799.3,0.00014783,2]
[352786453,1739311844096,-438.6,0.00014783,2]
[352786455,1739311844106,-500.0,0.00014783,2]
[352786457,1739311844115,-846.55,0.00014783,2]
[352786459,1739311844124,-500.0,0.00014783,2]
[352786461,1739311844134,-553.56,0.00014784,2]
[352786463,1739311844143,-825.41,0.00014919,2]
[352786465,1739311844153,-365.6,0.00014919,2]
[352786467,1739311844162,-500.0,0.00014919,2]
[352786469,1739311844174,-500.0,0.0001492,2]
[352786471,1739311844187,-500.0,0.0001492,2]
[352786473,1739311844198,-9191.81,0.0001492,2]
[352786475,1739311844207,-536.9,0.0001492,2]
[352786477,1739311844218,-500.0,0.0001492,2]
[352786480,1739311844227,-699.17,0.0001492,2]
[352786482,1739311844236,-3460.29,0.0001492,2]
[352786484,1739311844246,-799.3,0.0001492,2]
[352786486,1739311844257,-500.0,0.0001492,2]
[352786488,1739311844268,-846.55,0.0001492,2]
[352786490,1739311844277,-637.6,0.0001492,2]
[352786492,1739311844286,-500.0,0.00014999,2]
[352786493,1739311844295,-440.4696583,0.00014999,2]
[352786495,1739311844304,-43621.03191998,0.00015,4]
[352786497,1739311844314,-825.41,0.00015056,2]
[352786499,1739311844323,-500.0,0.00015056,2]
[352786501,1739311844332,-224.06,0.00015057,2]
[352786504,1739311844343,-500.0,0.00015057,2]
[352786506,1739311844352,-9191.81,0.00015057,2]
[352786508,1739311844362,-536.9,0.00015057,2]
[352786510,1739311844371,-500.0,0.00015057,2]
[352786512,1739311844380,-699.17,0.00015057,2]
[352786514,1739311844390,-3460.29,0.00015057,2]
[352786516,1739311844399,-799.3,0.00015057,2]
[352786518,1739311844409,-500.0,0.00015057,2]
[352786520,1739311844419,-846.55,0.00015057,2]
[352786522,1739311844428,-825.41,0.00015193,2]
[352786524,1739311844438,-500.0,0.00015193,2]
[352786526,1739311844448,-500.0,0.00015194,2]
[352786528,1739311844457,-9191.81,0.00015194,2]
[352786530,1739311844467,-536.9,0.00015194,2]
[352786532,1739311844476,-500.0,0.00015194,2]
[352786534,1739311844486,-699.17,0.00015194,2]
[352786536,1739311844495,-3460.29,0.00015194,2]
[352786538,1739311844505,-799.3,0.00015194,2]
[352786540,1739311844515,-500.0,0.00015194,2]
[352786542,1739311844525,-846.55,0.00015194,2]
[352786544,1739311844535,-151.0,0.00015195,2]
[352786546,1739311844544,-151.0,0.00015195,2]
[352786548,1739311844554,-762.5,0.00015215,2]
[352786550,1739311844563,-825.41,0.0001533,2]
[352786552,1739311844574,-500.0,0.0001533,2]
[352786554,1739311844583,-151.0,0.00015331,2]
[352786556,1739311844593,-500.0,0.00015331,2]
[352786558,1739311844603,-9191.81,0.00015331,2]
[352786560,1739311844613,-536.9,0.00015331,2]
[352786562,1739311844623,-500.0,0.00015331,2]
[352786564,1739311844632,-699.17,0.00015331,2]
[352786566,1739311844641,-3460.29,0.00015331,2]
[352786568,1739311844650,-799.3,0.00015331,2]
[352786570,1739311844660,-500.0,0.00015331,2]
[352786572,1739311844669,-846.55,0.00015331,2]
[352786574,1739311844679,-825.41,0.00015467,2]
[352786576,1739311844689,-500.0,0.00015467,2]
[352786578,1739311844699,-151.0,0.00015468,2]
[352786580,1739311844708,-151.0,0.00015468,2]
[352786582,1739311844718,-500.0,0.00015468,2]
[352786584,1739311844728,-9191.81,0.00015468,2]
[352786586,1739311844737,-536.9,0.00015468,2]
[352786588,1739311844747,-500.0,0.00015468,2]
[352786590,1739311844757,-699.17,0.00015468,2]
[352786592,1739311844766,-3460.29,0.00015468,2]
[352786594,1739311844777,-799.3,0.00015468,2]
[352786596,1739311844786,-158.55,0.00015468,2]
[352786598,1739311844795,-846.55,0.00015468,2]
[352786600,1739311844804,-500.0,0.00015508,2]
[352786602,1739311844814,-825.41,0.00015604,2]
[352786604,1739311844826,-500.0,0.00015604,2]
[352786606,1739311844836,-500.0,0.00015605,2]
[352786608,1739311844846,-9191.81,0.00015605,2]
[352786610,1739311844855,-536.9,0.00015605,2]
[352786612,1739311844865,-500.0,0.00015605,2]
[352786614,1739311844875,-699.17,0.00015605,2]
[352786616,1739311844885,-3460.29,0.00015605,2]
[352786618,1739311844895,-799.3,0.00015605,2]
[352786620,1739311844904,-846.55,0.00015605,2]
[352786622,1739311844914,-500.0,0.00015608,2]
[352786624,1739311844923,-300.0,0.000157,6]
[352786626,1739311844933,-500.0,0.00015708,2]
[352786628,1739311844944,-825.41,0.00015741,2]
[352786630,1739311844954,-500.0,0.00015741,2]
[352786632,1739311844963,-500.0,0.00015742,2]
[352786634,1739311844972,-9191.81,0.00015742,2]
[352786636,1739311844982,-536.9,0.00015742,2]
[352786638,1739311844992,-500.0,0.00015742,2]
[352786640,1739311845002,-699.17,0.00015742,2]
[352786642,1739311845012,-3460.29,0.00015742,2]
[352786644,1739311845022,-799.3,0.00015742,2]
[352786646,1739311845031,-846.55,0.00015742,2]
[352786648,1739311845041,-151.0,0.00015744,2]
[352786650,1739311845051,-151.0,0.00015744,2]
[352786652,1739311845060,-151.0,0.00015744,2]
[352786654,1739311845070,-500.0,0.00015808,2]
[352786656,1739311845079,-825.41,0.00015878,2]
[352786658,1739311845088,-500.0,0.00015878,2]
[352786660,1739311845098,-2257.85016491,0.00015879,2]
[352786662,1739311845107,-151.0,0.00015879,2]
[352786664,1739311845117,-500.0,0.00015879,2]
[352786666,1739311845127,-9191.81,0.00015879,2]
[352786668,1739311845137,-536.9,0.00015879,2]
[352786670,1739311845146,-500.0,0.00015879,2]
[352786672,1739311845155,-699.17,0.00015879,2]
[352786674,1739311845165,-3460.29,0.00015879,2]
[352786676,1739311845179,-799.3,0.00015879,2]
[352786679,1739311845191,-846.55,0.00015879,2]
[352786681,1739311845201,-500.0,0.00015908,2]
[352786682,1739311845210,-112045.4975984,0.00016,4]
[352786684,1739311845220,-173.669938,0.00016,2]
[352786687,1739311845230,-173.669938,0.00016,2]
[352786689,1739311845239,-151.0,0.00016,2]
[352786691,1739311845250,-151.0,0.00016,2]
[352786692,1739311845260,-151.0,0.00016,2]
[352786695,1739311845270,-151.0,0.00016,2]
[352786697,1739311845280,-151.0,0.00016,2]
[352786699,1739311845290,-500.0,0.00016008,2]
[352786701,1739311845299,-825.41,0.00016015,2]
[352786703,1739311845309,-500.0,0.00016015,2]
[352786705,1739311845318,-500.0,0.00016016,2]
[352786707,1739311845327,-9191.81,0.00016016,2]
[352786709,1739311845338,-536.9,0.00016016,2]
[352786711,1739311845347,-500.0,0.00016016,2]
[352786713,1739311845356,-699.17,0.00016016,2]
[352786715,1739311845366,-3460.29,0.00016016,2]
[352786717,1739311845375,-799.3,0.00016016,2]
[352786719,1739311845384,-846.55,0.00016016,2]
[352786721,1739311845394,-151.0,0.00016017,2]
[352786723,1739311845403,-151.0,0.000161,2]
[352786725,1739311845413,-500.0,0.00016108,2]
[352786727,1739311845423,-700.0,0.0001613,2]
[352786729,1739311845432,-825.41,0.00016152,2]
[352786731,1739311845443,-500.0,0.00016152,2]
[352786736,1739311845546,-500.0,0.00016153,2]
[352786737,1739311845557,-9191.81,0.00016153,2]
[352786738,1739311845567,-536.9,0.00016153,2]
[352786739,1739311845577,-500.0,0.00016153,2]
[352786740,1739311845588,-699.17,0.00016153,2]
[352786741,1739311845598,-3460.29,0.00016153,2]
[352786742,1739311845607,-799.3,0.00016153,2]
[352786743,1739311845617,-846.55,0.00016153,2]
[352786744,1739311845627,-499.0,0.00016164,2]
[352786745,1739311845638,-500.0,0.00016208,2]
[352786746,1739311845648,-825.41,0.00016289,2]
[352786747,1739311845658,-500.0,0.00016289,2]
[352786749,1739311845668,-355.94,0.0001629,2]
[352786751,1739311845677,-9191.81,0.0001629,2]
[352786753,1739311845687,-536.9,0.0001629,2]
[352786755,1739311845697,-500.0,0.0001629,2]
[352786757,1739311845706,-699.17,0.0001629,2]
[352786759,1739311845716,-3460.29,0.0001629,2]
[352786761,1739311845725,-799.3,0.0001629,2]
[352786763,1739311845735,-846.55,0.0001629,2]
[352786765,1739311845744,-151.0,0.000163,2]
[352786767,1739311845754,-446.8544374,0.00016308,2]
[352786776,1739311845833,-53.1455626,0.00016308,2]
[352786778,1739311845843,-218.0,0.00016349,2]
[352786780,1739311845853,-218.0,0.00016349,2]
[352786783,1739311845863,-218.0,0.00016349,2]
[352786784,1739311845872,-218.0,0.00016349,2]
[352786788,1739311845882,-218.0,0.00016349,2]
[352786792,1739311845892,-218.0,0.00016349,2]
[352786794,1739311845901,-218.0,0.00016349,2]
[352786796,1739311845910,-218.0,0.00016349,2]
[352786797,1739311845920,-218.0,0.00016349,2]
[352786800,1739311845931,-218.0,0.00016349,2]
[352786802,1739311845940,-218.0,0.00016349,2]
[352786804,1739311845950,-218.0,0.00016349,2]
[352786806,1739311845960,-218.0,0.00016349,2]
[352786808,1739311845971,-218.0,0.00016349,2]
[352786810,1739311845981,-311.0,0.0001635,2]
[352786812,1739311845990,-311.0,0.0001635,2]
[352786815,1739311846000,-311.0,0.0001635,2]
[352786818,1739311846009,-311.0,0.0001635,2]
[352786820,1739311846019,-311.0,0.0001635,2]
[352786823,1739311846029,-311.0,0.0001635,2]
[352786825,1739311846038,-311.0,0.0001635,2]
[352786828,1739311846048,-311.0,0.0001635,2]
[352786830,1739311846058,-311.0,0.0001635,2]
[352786832,1739311846067,-311.0,0.0001635,2]
[352786834,1739311846077,-311.0,0.0001635,2]
[352786836,1739311846087,-311.0,0.0001635,2]
[352786838,1739311846097,-311.0,0.0001635,2]
[352786841,1739311846107,-311.0,0.0001635,2]
[352786843,1739311846116,-218.0,0.00016355,2]
[352786845,1739311846126,-218.0,0.00016355,2]
[352786847,1739311846135,-218.0,0.00016355,2]
[352786849,1739311846144,-218.0,0.00016355,2]
[352786851,1739311846153,-218.0,0.00016355,2]
[352786853,1739311846162,-218.0,0.00016355,2]
[352786855,1739311846172,-218.0,0.00016355,2]
[352786857,1739311846184,-218.0,0.00016355,2]
[352786860,1739311846194,-218.0,0.00016355,2]
[352786862,1739311846204,-218.0,0.00016355,2]
[352786864,1739311846214,-218.0,0.00016355,2]
[352786866,1739311846223,-218.0,0.00016355,2]
[352786868,1739311846233,-218.0,0.00016355,2]
[352786870,1739311846242,-311.0,0.00016355,2]
[352786872,1739311846252,-311.0,0.00016355,2]
[352786874,1739311846263,-311.0,0.00016355,2]
[352786876,1739311846273,-311.0,0.00016355,2]
[352786878,1739311846282,-311.0,0.00016355,2]
[352786880,1739311846292,-311.0,0.00016355,2]
[352786882,1739311846301,-311.0,0.00016355,2]
[352786884,1739311846311,-311.0,0.00016355,2]
[352786886,1739311846320,-311.0,0.00016355,2]
[352786888,1739311846330,-311.0,0.00016355,2]
[352786889,1739311846339,-311.0,0.00016355,2]
[352786890,1739311846349,-311.0,0.00016355,2]
[352786891,1739311846359,-311.0,0.00016355,2]
[352786892,1739311846369,-501.01615178,0.00016378,30]
[352786893,1739311846378,-500.0,0.00016408,2]
[352786894,1739311846388,-825.41,0.00016426,2]
[352786895,1739311846398,-500.0,0.00016426,2]
[352786896,1739311846408,-9191.81,0.00016427,2]
[352786897,1739311846417,-536.9,0.00016427,2]
[352786898,1739311846427,-500.0,0.00016427,2]
[352786899,1739311846436,-699.17,0.00016427,2]
[352786900,1739311846447,-3460.29,0.00016427,2]
[352786901,1739311846457,-799.3,0.00016427,2]
[352786903,1739311846467,-846.55,0.00016427,2]
[352786905,1739311846476,-500.0,0.00016438,2]
[352786907,1739311846486,-500.0,0.00016508,2]
[352786909,1739311846496,-825.41,0.00016563,2]
[352786911,1739311846505,-214.94,0.00016563,2]
[352786913,1739311846515,-151.0,0.00016564,2]
[352786915,1739311846525,-151.0,0.00016564,2]
[352786917,1739311846535,-9191.81,0.00016564,2]
[352786919,1739311846545,-536.9,0.00016564,2]
[352786921,1739311846554,-500.0,0.00016564,2]
[352786923,1739311846563,-699.17,0.00016564,2]
[352786925,1739311846573,-3460.29,0.00016564,2]
[352786928,1739311846583,-799.3,0.00016564,2]
[352786930,1739311846593,-846.55,0.00016564,2]
[352786932,1739311846603,-366.584007,0.00016565,2]
[352786934,1739311846613,-366.584007,0.00016565,2]
[352786936,1739311846622,-151.0,0.00016565,2]
[352786938,1739311846632,-151.0,0.00016565,2]
[352786940,1739311846641,-151.0,0.000166,2]
[352786942,1739311846651,-151.0,0.000166,2]
[352786944,1739311846661,-500.0,0.00016608,2]
[352786946,1739311846671,-151.0,0.0001665,2]
[352786948,1739311846680,-13268.2024785,0.00016684,2]
[352786950,1739311846691,-985.9113086,0.00016696,2]
[352786952,1739311846699,-825.55,0.000167,2]
[352786954,1739311846709,-9191.8189,0.00016701,2]
[352786956,1739311846719,-537.1,0.00016701,2]
[352786958,1739311846728,-205.18,0.00016701,2]
[352786960,1739311846739,-699.25,0.00016701,2]
[352786962,1739311846749,-3460.34094153,0.00016701,2]
[352786964,1739311846759,-799.53206125,0.00016701,2]
[352786966,1739311846769,-151.0,0.00016701,2]
[352786968,1739311846778,-846.61,0.00016701,2]
[352786970,1739311846788,-151.0,0.00016701,2]
[352786972,1739311846797,-151.0,0.00016702,2]
[352786974,1739311846807,-500.0,0.00016708,2]
[352786976,1739311846816,-2310.80492803,0.00016765,2]
[352786978,1739311846826,-173.669938,0.00016766,2]
[352786980,1739311846836,-173.669938,0.00016766,2]
[352786982,1739311846845,-1608.86167214,0.00016778,2]
[352786983,1739311846853,-151.0,0.00016778,2]
[352786985,1739311846862,-4278.24061318,0.00016778,2]
[352786987,1739311846872,-151.0,0.00016778,2]
[352786989,1739311846881,-2000.0,0.000168,2]
[352786991,1739311846891,-151.0,0.000168,2]
[352786993,1739311846900,-151.0,0.000168,2]
[352786995,1739311846909,-622.0,0.000168,2]
[352786997,1739311846919,-500.0,0.00016808,2]
[352786999,1739311846928,-500.0,0.00016834,2]
[352787001,1739311846937,-186.0,0.00016843,2]